[Event "ARM-ch Club 2018"]
[Site "Yerevan"]
[Date "2018.06.11"]
[Round "4"]
[White "Gharibyan, Mamikon"]
[Black "Vardanyan, Aram"]
[Result "1/2-1/2"]
[ECO "D85"]
[WhiteElo "2275"]
[BlackElo "1866"]
[Annotator "ChessBase"]
[PlyCount "129"]
[EventDate "2018.??.??"]
[EventCountry "ARM"]
[SourceTitle "playchess.com"]
[Source "ChessBase"]
[SourceQuality "1"]
[TimeControl "5400+30"]

1. d4 {[%emt 0:00:00]} Nf6 {[%emt 0:00:13]} 2. c4 {[%emt 0:00:00]} g6 {[%emt 0:01:01]} 3. Nc3 {[%emt 0:00:16]} d5 {[%emt 0:00:06]} 4. cxd5 {[%emt 0:01:16]} Nxd5 {[%emt 0:00:06]} 5. e4 {[%emt 0:00:35]} Nxc3 {[%emt 0:00:07]} 6. bxc3 {[%emt 0:00:12]} Bg7 {[%emt 0:00:15]} 7. Be3 {[%emt 0:01:11]} c5 {[%emt 0:01:26]} 8. Rc1 {[%emt 0:01:04]} O-O {[%emt 0:00:52]} 9. Nf3 {[%emt 0:00:22]} b6 {[%emt 0:05:19]} 10. h3 {[%emt 0:05:38]} Bb7 {[%emt 0:01:28]} 11. Bd3 {[%emt 0:01:33]} Nd7 {[%emt 0:02:16]} 12. O-O {[%emt 0:02:15]} e6 {[%emt 0:19:49]} 13. Qe2 {[%emt 0:03:02]} Qe7 {[%emt 0:01:29]} 14. e5 {[%emt 0:01:46]} Rac8 {[%emt 0:06:16]} 15. Ng5 {[%emt 0:06:14]} h6 {[%emt 0:12:49]} 16. Ne4 {[%emt 0:01:00]} c4 {[%emt 0:00:29]} 17. Bb1 {[%emt 0:02:05]} Bxe4 {[%emt 0:01:50]} 18. Bxe4 {[%emt 0:00:11]} b5 {[%emt 0:01:43]} 19. Rb1 {[%emt 0:08:15]} Rb8 {[%emt 0:01:06]} 20. Bc6 {[%emt 0:02:04]} a6 {[%emt 0:05:54]} 21. a4 {[%emt 0:01:15]} bxa4 {[%emt 0:01:50]} 22. Qxc4 {[%emt 0:11:44]} Nb6 {[%emt 0:03:17]} 23. Qxa6 {[%emt 0:01:29]} Qc7 {[%emt 0:00:55]} 24. Be4 {[%emt 0:05:41]} Nc4 {[%emt 0:05:07]} 25. Bf4 {[%emt 0:02:50]} a3 {[%emt 0:06:59]} 26. h4 {[%emt 0:22:11]} Na5 {[%emt 0:07:45]} 27. c4 {[%emt 0:03:24]} Rxb1 {[%emt 0:05:51]} 28. Rxb1 {[%emt 0:01:13]} a2 {[%emt 0:00:22]} 29. Ra1 {[%emt 0:04:07]} Nb3 {[%emt 0:03:31]} 30. Rxa2 {[%emt 0:00:19]} Nxd4 {[%emt 0:00:04]} 31. Rd2 {[%emt 0:06:28]} Bxe5 {[%emt 0:04:11]} 32. Bxh6 {[%emt 0:04:11]} Rc8 {[%emt 0:00:26]} 33. g3 {[%emt 0:01:58]} Qxc4 {[%emt 0:01:29]} 34. Qxc4 {[%emt 0:00:26]} Rxc4 35. Bg5 {[%emt 0:00:34]} Kg7 {[%emt 0:00:40]} 36. Kg2 {[%emt 0:00:23]} Bf6 {[%emt 0:00:27]} 37. Bf4 {[%emt 0:00:40]} Nb3 {[%emt 0:00:26]} 38. Re2 {[%emt 0:00:16]} Nc5 {[%emt 0:00:18]} 39. Rc2 {[%emt 0:00:40]} Rxe4 {[%emt 0:01:04]} 40. Rxc5 {[%emt 0:00:04]} Bxh4 {[%emt 0:00:13]} 41. Kf3 {[%emt 0:00:19]} Be7 {[%emt 0:00:53]} 42. Rc7 {[%emt 0:00:16]} Rxf4+ {[%emt 0:00:32]} 43. gxf4 {[%emt 0:00:04]} Bf6 {[%emt 0:00:04]} 44. Ke4 {[%emt 0:00:33]} Bb2 {[%emt 0:00:08]} 45. Rb7 {[%emt 0:00:30]} Bf6 {[%emt 0:00:06]} 46. Kd3 {[%emt 0:00:06]} Bh4 {[%emt 0:00:09]} 47. f3 {[%emt 0:00:26]} Bg3 {[%emt 0:00:18]} 48. Ke3 {[%emt 0:00:21]} Bh4 {[%emt 0:00:07]} 49. Rc7 {[%emt 0:00:23]} Bd8 {[%emt 0:00:18]} 50. Rd7 {[%emt 0:00:16]} Bf6 {[%emt 0:00:17]} 51. Ke4 {[%emt 0:00:15]} Bh4 {[%emt 0:00:09]} 52. Ra7 {[%emt 0:00:48]} Bf6 {[%emt 0:00:06]} 53. Rb7 {[%emt 0:00:13]} Bh4 {[%emt 0:00:06]} 54. Ke5 {[%emt 0:00:55]} Bg3 {[%emt 0:00:09]} 55. Kd6 {[%emt 0:00:31]} Kf6 {[%emt 0:01:48]} 56. Kd7 {[%emt 0:00:25]} Kf5 {[%emt 0:00:37]} 57. Ke7 {[%emt 0:00:04]} Kxf4 {[%emt 0:00:35]} 58. Kxf7 {[%emt 0:00:06]} Kxf3 {[%emt 0:00:16]} 59. Kxe6 {[%emt 0:00:47]} Bf4 {[%emt 0:00:31]} 60. Kf6 {[%emt 0:00:29]} g5 {[%emt 0:00:09]} 61. Kf5 {[%emt 0:00:25]} Be3 {[%emt 0:00:48]} 62. Rb4 {[%emt 0:00:07]} Bd2 {[%emt 0:00:15]} 63. Rg4 {[%emt 0:00:14]} Bf4 {[%emt 0:00:12]} 64. Rxg5 {[%emt 0:00:05]} Bxg5 {[%emt 0:00:01]} 65. Kxg5 {[%emt 0:00:08]} 1/2-1/2

[Event "ARM-ch Club 2018"]
[Site "Yerevan"]
[Date "2018.06.11"]
[Round "4"]
[White "Khachatryan, Anna"]
[Black "Davtyan, Artur"]
[Result "0-1"]
[ECO "A05"]
[WhiteElo "1955"]
[BlackElo "2349"]
[Annotator "ChessBase"]
[PlyCount "128"]
[EventDate "2018.??.??"]
[EventCountry "ARM"]
[SourceTitle "playchess.com"]
[Source "ChessBase"]
[SourceQuality "1"]
[TimeControl "5400+30"]

1. Nf3 {[%emt 0:00:00]} Nf6 {[%emt 0:01:11]} 2. g3 {[%emt 0:00:00]} d5 {[%emt 0:00:31]} 3. Bg2 e6 {[%emt 0:00:05]} 4. O-O {[%emt 0:00:00]} Be7 {[%emt 0:00:25]} 5. d3 {[%emt 0:00:00]} b5 {[%emt 0:02:06]} 6. Nbd2 {[%emt 0:00:00]} Bb7 {[%emt 0:00:01]} 7. Re1 {[%emt 0:00:07]} h6 {[%emt 0:01:26]} 8. e4 {[%emt 0:04:33]} c5 {[%emt 0:07:40]} 9. e5 {[%emt 0:00:19]} Nfd7 {[%emt 0:00:05]} 10. Nf1 {[%emt 0:00:09]} Nc6 11. h4 {[%emt 0:03:33]} b4 {[%emt 0:04:16]} 12. Bf4 {[%emt 0:26:43]} g5 {[%emt 0:04:28]} 13. hxg5 {[%emt 0:00:13]} hxg5 {[%emt 0:00:02]} 14. Bd2 {[%emt 0:00:29]} g4 {[%emt 0:22:23]} 15. N3h2 {[%emt 0:00:03]} Ndxe5 {[%emt 0:00:53]} 16. Nxg4 {[%emt 0:00:49]} Nxg4 {[%emt 0:03:14]} 17. Qxg4 {[%emt 0:00:07]} Bf6 {[%emt 0:01:56]} 18. Rab1 {[%emt 0:19:21]} Ne5 {[%emt 0:04:04]} 19. Qe2 {[%emt 0:04:13]} Qd7 {[%emt 0:01:25]} 20. d4 {[%emt 0:07:45]} cxd4 {[%emt 0:03:05]} 21. Bxb4 {[%emt 0:00:15]} Rc8 {[%emt 0:12:26]} 22. b3 {[%emt 0:09:22]} Qc6 {[%emt 0:07:44]} 23. Qd2 {[%emt 0:08:42]} Ng6 {[%emt 0:17:17]} 24. Rbc1 {[%emt 0:01:36]} Kd7 {[%emt 0:00:01]} 25. Qd3 {[%emt 0:05:14]} Ne5 {[%emt 0:00:01]} 26. Qd2 {[%emt 0:00:08]} Ng6 {[%emt 0:00:18]} 27. Qd3 {[%emt 0:00:01]} Bg7 {[%emt 0:01:19]} 28. Qf3 {[%emt 0:00:37]} f5 {[%emt 0:00:02]} 29. a4 {[%emt 0:03:30]} Bf6 {[%emt 0:01:02]} 30. Qd1 {[%emt 0:02:47]} Qb6 {[%emt 0:02:34]} 31. Qd2 {[%emt 0:00:50]} Ne5 {[%emt 0:01:38]} 32. Ba5 {[%emt 0:02:22]} Qa6 {[%emt 0:00:29]} 33. Bb4 {[%emt 0:00:25]} Ng4 {[%emt 0:01:24]} 34. Qf4 {[%emt 0:01:30]} Qb6 {[%emt 0:00:19]} 35. Bd2 {[%emt 0:00:29]} Rcg8 {[%emt 0:00:36]} 36. Qf3 {[%emt 0:00:34]} Ne5 {[%emt 0:00:02]} 37. Qd1 {[%emt 0:00:40]} Ng4 {[%emt 0:00:26]} 38. Qf3 Rc8 {[%emt 0:01:38]} 39. Qf4 {[%emt 0:00:52]} Qd6 {[%emt 0:00:56]} 40. Qf3 Ne5 {[%emt 0:00:28]} 41. Qd1 {[%emt 0:00:57]} Qb6 {[%emt 0:00:22]} 42. Bf4 {[%emt 0:00:58]} Ng6 {[%emt 0:00:02]} 43. Bd2 {[%emt 0:00:13]} Ne5 {[%emt 0:00:31]} 44. Bf4 {[%emt 0:00:13]} Ng4 {[%emt 0:00:01]} 45. Qf3 {[%emt 0:00:20]} Rc3 {[%emt 0:00:07]} 46. Qe2 {[%emt 0:00:20]} Ba6 {[%emt 0:00:21]} 47. Qd2 {[%emt 0:00:15]} Qc5 {[%emt 0:01:59]} 48. Bg5 {[%emt 0:00:47]} Bg7 {[%emt 0:00:24]} 49. Qf4 {[%emt 0:00:50]} Rf8 {[%emt 0:00:37]} 50. Nh2 {[%emt 0:00:40]} e5 {[%emt 0:00:26]} 51. Qd2 {[%emt 0:00:17]} Nxh2 {[%emt 0:00:35]} 52. Kxh2 {[%emt 0:00:01]} Rh8+ {[%emt 0:00:17]} 53. Kg1 {[%emt 0:00:00]} Qc6 {[%emt 0:00:45]} 54. Bh1 {[%emt 0:01:51]} Qg6 {[%emt 0:00:30]} 55. Bxd5 Qh5 {[%emt 0:00:32]} 56. Bh4 {[%emt 0:00:46]} Bh6 {[%emt 0:00:32]} 57. f4 {[%emt 0:01:01]} Bxf4 {[%emt 0:00:24]} 58. Qd1 {[%emt 0:00:28]} Bxc1 {[%emt 0:00:33]} 59. Qxc1 {[%emt 0:00:09]} Qg4 {[%emt 0:00:10]} 60. Bg2 {[%emt 0:00:51]} Rxg3 {[%emt 0:00:52]} 61. Bxg3 {[%emt 0:00:01]} Qxg3 {[%emt 0:00:01]} 62. Qd2 {[%emt 0:00:19]} Qh2+ {[%emt 0:00:01]} 63. Kf2 {[%emt 0:00:03]} Rg8 {[%emt 0:00:06]} 64. Rg1 {[%emt 0:00:13]} Qg3# {[%emt 0:00:01]} 0-1